fUSD/lending_fUSD_20260506
["ID","MTS","AMOUNT","RATE_DAILY","PERIOD"]
[421635735,1778003438000,-345.67477591,0.00038145,10]
[421635711,1778003438000,-151.0,0.00038145,10]
[421635713,1778003438000,-151.0,0.00038145,10]
[421635709,1778003438000,-151.0,0.00038145,10]
[421635720,1778003438000,-151.0,0.00038145,10]
[421635717,1778003438000,-151.0,0.00038145,10]
[421635715,1778003438000,-151.0,0.00038145,10]
[421635722,1778003438000,-243.22474337,0.00038145,10]
[421635752,1778003438000,-1000.0,0.00038155,2]
[421635768,1778003439000,-500.0,0.00038155,2]
[421635759,1778003439000,-1000.0,0.00038155,2]
[421635762,1778003439000,-975.97571509,0.00038155,2]
[421635766,1778003439000,-500.0,0.00038155,2]
[421635755,1778003439000,-1000.0,0.00038155,2]
[421635764,1778003439000,-500.0,0.00038155,2]
[421635757,1778003439000,-1000.0,0.00038155,2]
[421635770,1778003439000,-335.47957646,0.00038155,2]
[421635773,1778003439000,-200.0,0.00038156,2]
[421635775,1778003439000,-150.0,0.00038173,5]
[421635781,1778003439000,-152.0,0.00038201,7]
[421635779,1778003439000,-152.0,0.0003819,7]
[421635786,1778003439000,-7216.0898079,0.00038218,2]
[421635784,1778003439000,-151.0,0.00038216,14]
[421635788,1778003439000,-164422.36107423,0.00038219,2]
[421635803,1778003439000,-7739.72671172,0.00038219,2]
[421635777,1778003439000,-152.0,0.00038185,30]
[421636036,1778003440000,-242.12,0.00038284,120]
[421636034,1778003440000,-166.29,0.00038284,2]
[421636023,1778003440000,-457.593693,0.00038281,7]
[421636018,1778003440000,-457.593693,0.00038281,7]
[421636020,1778003440000,-151.0,0.00038281,7]
[421636006,1778003440000,-155.86,0.00038276,60]
[421636004,1778003440000,-1724.57206028,0.00038267,2]
[421636002,1778003440000,-269.079825,0.00038256,7]
[421636008,1778003440000,-2623.38,0.00038276,60]
[421636000,1778003440000,-161.308794,0.00038256,7]
[421636010,1778003440000,-2147.5441,0.00038281,2]
[421635998,1778003440000,-361.57982287,0.00038256,2]
[421635990,1778003440000,-62278.79983435,0.00038219,2]
[421635996,1778003440000,-5000.0,0.00038256,2]
[421635994,1778003440000,-4926.778,0.00038256,10]
[421635992,1778003440000,-16120.95964745,0.00038232,2]
[421636030,1778003440000,-222.6624,0.00038281,2]
[421636016,1778003440000,-151.0,0.00038281,7]
[421636040,1778003440000,-362.21241689,0.00038307,2]
[421636014,1778003440000,-2024.2026,0.00038281,2]
[421636032,1778003440000,-167.0,0.00038281,5]
[421636026,1778003440000,-457.593693,0.00038281,7]
[421636054,1778003440000,-300.0,0.00038307,2]
[421636052,1778003440000,-433.53989764,0.00038307,2]
[421636051,1778003440000,-300.0,0.00038307,2]
[421636053,1778003440000,-300.0,0.00038307,2]
[421636057,1778003440000,-489.87866185,0.00038307,2]
[421636060,1778003440000,-300.0,0.00038307,2]
[421636050,1778003440000,-300.0,0.00038307,2]
[421636055,1778003440000,-300.0,0.00038307,2]
[421636056,1778003440000,-300.0,0.00038307,2]
[421636058,1778003440000,-302.02672616,0.00038307,2]
[421636048,1778003440000,-302.15680821,0.00038307,2]
[421636046,1778003440000,-1144.93714007,0.00038307,2]
[421636024,1778003440000,-151.0,0.00038281,7]
[421636042,1778003440000,-300.0,0.00038307,2]
[421636044,1778003440000,-300.0,0.00038307,2]
[421636038,1778003440000,-4069.56,0.000383,7]
[421636059,1778003440000,-300.0,0.00038307,2]
[421636028,1778003440000,-457.593693,0.00038281,7]
[421636146,1778003441000,-300.00000001,0.00038307,2]
[421636145,1778003441000,-300.0,0.00038307,2]
[421636132,1778003441000,-301.96099641,0.00038307,2]
[421636130,1778003441000,-302.26338123,0.00038307,2]
[421636114,1778003441000,-462.95588259,0.00038307,2]
[421636126,1778003441000,-300.0,0.00038307,2]
[421636124,1778003441000,-300.0,0.00038307,2]
[421636116,1778003441000,-300.0,0.00038307,2]
[421636149,1778003441000,-150.88826,0.00038308,120]
[421636122,1778003441000,-302.53375321,0.00038307,2]
[421636128,1778003441000,-300.0,0.00038307,2]
[421636153,1778003441000,-500.0,0.00038356,21]
[421636174,1778003441000,-500.0,0.00038356,2]
[421636151,1778003441000,-707.2905,0.00038346,120]
[421636136,1778003441000,-300.0,0.00038307,2]
[421636138,1778003441000,-300.0,0.00038307,2]
[421636140,1778003441000,-599.99999999,0.00038307,2]
[421636142,1778003441000,-300.0,0.00038307,2]
[421636155,1778003441000,-500.0,0.00038356,21]
[421636157,1778003441000,-500.0,0.00038356,2]
[421636170,1778003441000,-500.0,0.00038356,2]
[421636110,1778003441000,-300.0,0.00038307,2]
[421636168,1778003441000,-256.51030757,0.00038356,2]
[421636159,1778003441000,-500.0,0.00038356,2]
[421636179,1778003441000,-500.0,0.00038356,2]
[421636172,1778003441000,-500.0,0.00038356,2]
[421636134,1778003441000,-301.99937587,0.00038307,2]
[421636120,1778003441000,-451.01752187,0.00038307,2]
[421636102,1778003441000,-300.0,0.00038307,2]
[421636112,1778003441000,-300.0,0.00038307,2]
[421636166,1778003441000,-500.0,0.00038356,2]
[421636061,1778003441000,-300.0,0.00038307,2]
[421636063,1778003441000,-300.0,0.00038307,2]
[421636073,1778003441000,-300.0,0.00038307,2]
[421636079,1778003441000,-309.04837965,0.00038307,2]
[421636075,1778003441000,-300.0,0.00038307,2]
[421636077,1778003441000,-300.0,0.00038307,2]
[421636065,1778003441000,-300.0,0.00038307,2]
[421636064,1778003441000,-300.0,0.00038307,2]
[421636062,1778003441000,-300.0,0.00038307,2]
[421636081,1778003441000,-300.0,0.00038307,2]
[421636068,1778003441000,-491.7271644,0.00038307,2]
[421636083,1778003441000,-301.21874752,0.00038307,2]
[421636069,1778003441000,-300.0,0.00038307,2]
[421636071,1778003441000,-300.0,0.00038307,2]
[421636089,1778003441000,-300.0,0.00038307,2]
[421636087,1778003441000,-300.0,0.00038307,2]
[421636091,1778003441000,-426.57274865,0.00038307,2]
[421636093,1778003441000,-302.42245275,0.00038307,2]
[421636095,1778003441000,-343.31248271,0.00038307,2]
[421636106,1778003441000,-300.0,0.00038307,2]
[421636085,1778003441000,-300.0,0.00038307,2]
[421636104,1778003441000,-300.0,0.00038307,2]
[421636099,1778003441000,-1143.54959327,0.00038307,2]
[421636097,1778003441000,-300.0,0.00038307,2]
[421636100,1778003441000,-312.30047405,0.00038307,2]
[421636108,1778003441000,-310.28884427,0.00038307,2]
[421636118,1778003441000,-433.53989763,0.00038307,2]
[421636177,1778003441000,-500.0,0.00038356,2]
[421636202,1778003441000,-500.0,0.00038356,2]
[421636191,1778003441000,-500.0,0.00038356,2]
[421636249,1778003441000,-500.0,0.00038356,2]
[421636254,1778003441000,-555.13,0.00038356,2]
[421636252,1778003441000,-538.03473045,0.00038356,2]
[421636256,1778003441000,-500.0,0.00038356,2]
[421636257,1778003441000,-500.0,0.00038356,2]
[421636261,1778003441000,-500.0,0.00038356,2]
[421636260,1778003441000,-500.0,0.00038356,2]
[421636264,1778003441000,-500.0,0.00038356,2]
[421636266,1778003441000,-500.0,0.00038356,2]
[421636270,1778003441000,-500.0,0.00038356,2]
[421636268,1778003441000,-500.0,0.00038356,2]
[421636272,1778003441000,-659.65,0.00038356,2]
[421636274,1778003441000,-659.65,0.00038356,2]
[421636276,1778003441000,-659.65,0.00038356,2]
[421636282,1778003441000,-964.34,0.00038356,2]
[421636280,1778003441000,-659.65,0.00038356,2]
[421636286,1778003441000,-964.34,0.00038356,2]
[421636288,1778003441000,-964.34,0.00038356,2]
[421636290,1778003441000,-964.34,0.00038356,2]
[421636292,1778003441000,-175.69204752,0.00038356,2]
[421636284,1778003441000,-964.34,0.00038356,2]
[421636294,1778003441000,-6177.89,0.00038356,2]
[421636296,1778003441000,-6177.89,0.00038356,2]
[421636302,1778003441000,-6177.89,0.00038356,2]
[421636300,1778003441000,-6177.89,0.00038356,2]
[421636298,1778003441000,-6177.89,0.00038356,2]
[421636181,1778003441000,-541.44635782,0.00038356,2]
[421636243,1778003441000,-500.0,0.00038356,2]
[421636247,1778003441000,-500.0,0.00038356,2]
[421636278,1778003441000,-659.65,0.00038356,2]
[421636245,1778003441000,-500.0,0.00038356,2]
[421636194,1778003441000,-500.0,0.00038356,2]
[421636241,1778003441000,-500.0,0.00038356,2]
[421636196,1778003441000,-500.0,0.00038356,2]
[421636198,1778003441000,-500.0,0.00038356,2]
[421636200,1778003441000,-500.0,0.00038356,2]
[421636185,1778003441000,-500.0,0.00038356,2]
[421636183,1778003441000,-428.99579381,0.00038356,2]
[421636187,1778003441000,-500.0,0.00038356,2]
[421636204,1778003441000,-503.84407053,0.00038356,2]
[421636216,1778003441000,-500.0,0.00038356,2]
[421636218,1778003441000,-500.0,0.00038356,2]
[421636221,1778003441000,-500.0,0.00038356,2]
[421636223,1778003441000,-500.0,0.00038356,2]
[421636189,1778003441000,-500.0,0.00038356,2]
[421636237,1778003441000,-500.0,0.00038356,2]
[421636239,1778003441000,-500.0,0.00038356,2]
[421636225,1778003441000,-500.0,0.00038356,2]
[421636235,1778003441000,-504.48712197,0.00038356,2]
[421636233,1778003441000,-271.22872094,0.00038356,2]
[421636231,1778003441000,-500.0,0.00038356,2]
[421636227,1778003441000,-500.0,0.00038356,2]
[421636229,1778003441000,-500.0,0.00038356,2]
[421636210,1778003441000,-500.0,0.00038356,2]
[421636212,1778003441000,-500.0,0.00038356,2]
[421636206,1778003441000,-500.0,0.00038356,2]
[421636208,1778003441000,-500.0,0.00038356,2]
[421636214,1778003441000,-500.0,0.00038356,2]
[421636389,1778003442000,-150.0,0.0003875,120]
[421636365,1778003442000,-252.87235326,0.00038614,2]
[421636397,1778003442000,-2147.5441,0.00038828,2]
[421636391,1778003442000,-151.0,0.00038787,28]
[421636393,1778003442000,-913.38267254,0.00038799,2]
[421636369,1778003442000,-2024.2026,0.00038664,2]
[421636363,1778003442000,-150.0,0.00038614,2]
[421636383,1778003442000,-343.41951008,0.00038704,7]
[421636380,1778003442000,-393.0,0.00038704,5]
[421636381,1778003442000,-312.0,0.00038704,5]
[421636385,1778003442000,-250.0,0.00038721,5]
[421636387,1778003442000,-150.0,0.0003875,120]
[421636367,1778003442000,-200.0,0.00038634,2]
[421636402,1778003442000,-1000.0,0.000389,2]
[421636426,1778003442000,-1665.10775046,0.00039104,2]
[421636400,1778003442000,-310.0,0.000389,2]
[421636399,1778003442000,-2024.2026,0.00038855,2]
[421636406,1778003442000,-500.0,0.00039,7]
[421636404,1778003442000,-361.57982286,0.0003896,2]
[421636408,1778003442000,-333.02,0.00039,7]
[421636410,1778003442000,-150.0,0.00039,120]
[421636412,1778003442000,-150.0,0.00039,120]
[421636414,1778003442000,-20000.0,0.00039,2]
[421636422,1778003442000,-2024.2026,0.00039046,2]
[421636428,1778003442000,-634.374,0.0003912,2]
[421636424,1778003442000,-2147.5441,0.00039101,2]
[421636429,1778003442000,-3535.0,0.0003912,2]
[421636378,1778003442000,-494.0,0.00038703,5]
[421636395,1778003442000,-1788.38122651,0.00038815,2]
[421636376,1778003442000,-16120.95964745,0.0003869,2]
[421636306,1778003442000,-500.0,0.00038356,2]
[421636374,1778003442000,-1760.03,0.00038689,2]
[421636431,1778003442000,-925.0,0.0003912,2]
[421636304,1778003442000,-500.0,0.00038356,2]
[421636308,1778003442000,-500.0,0.00038356,2]
[421636323,1778003442000,-1760.03,0.00038356,2]
[421636321,1778003442000,-1760.03,0.00038356,2]
[421636329,1778003442000,-500.0,0.00038356,2]
[421636309,1778003442000,-500.0,0.00038356,2]
[421636327,1778003442000,-1760.03,0.00038356,2]
[421636325,1778003442000,-1760.03,0.00038356,2]
[421636311,1778003442000,-500.0,0.00038356,2]
[421636313,1778003442000,-340.60220378,0.00038356,2]
[421636315,1778003442000,-500.0,0.00038356,2]
[421636319,1778003442000,-1760.03,0.00038356,2]
[421636361,1778003442000,-700.0,0.00038578,2]
[421636317,1778003442000,-500.0,0.00038356,2]
[421636333,1778003442000,-500.0,0.00038356,2]
[421636348,1778003442000,-150.0,0.000385,120]
[421636335,1778003442000,-500.0,0.00038356,2]
[421636350,1778003442000,-563.92412643,0.00038521,5]
[421636337,1778003442000,-500.0,0.00038356,2]
[421636340,1778003442000,-169.33728848,0.00038394,120]
[421636353,1778003442000,-347.39126432,0.00038521,5]
[421636355,1778003442000,-200.0,0.00038538,2]
[421636346,1778003442000,-150.0,0.000385,120]
[421636342,1778003442000,-1665.10775046,0.0003843,2]
[421636359,1778003442000,-200.36,0.00038555,2]
[421636344,1778003442000,-2024.2026,0.00038472,2]
[421636357,1778003442000,-2147.5441,0.00038554,2]
[421636331,1778003442000,-500.0,0.00038356,2]
[421636433,1778003442000,-150.0,0.0003912,2]
[421636371,1778003442000,-200.0,0.00038685,20]
[421636420,1778003442000,-286.0,0.00039046,30]
[421636497,1778003442000,-151.0,0.00039376,7]
[421636507,1778003442000,-457.593693,0.00039376,30]
[421636499,1778003442000,-457.593693,0.00039376,30]
[421636503,1778003442000,-457.593693,0.00039376,30]
[421636509,1778003442000,-457.593693,0.00039376,30]
[421636505,1778003442000,-151.0,0.00039376,30]
[421636501,1778003442000,-151.0,0.00039376,30]
[421636511,1778003442000,-964.34,0.00039417,2]
[421636525,1778003442000,-2024.2026,0.00039429,2]
[421636524,1778003442000,-151.86157698,0.00039418,7]
[421636527,1778003442000,-200.0,0.00039485,2]
[421636517,1778003442000,-1535.0,0.00039418,7]
[421636513,1778003442000,-500.0,0.00039417,2]
[421636545,1778003442000,-576.22,0.00039578,120]
[421636531,1778003442000,-150.0,0.000395,120]
[421636519,1778003442000,-1615.81069288,0.00039418,7]
[421636522,1778003442000,-151.0,0.00039418,7]
[421636529,1778003442000,-54062.16564052,0.000395,2]
[421636534,1778003442000,-500.0,0.00039541,2]
[421636536,1778003442000,-659.65,0.00039541,2]
[421636538,1778003442000,-6177.89,0.00039541,2]
[421636543,1778003442000,-249.77,0.00039578,120]
[421636541,1778003442000,-1069.08,0.00039578,120]
[421636549,1778003442000,-150.905908,0.000396,10]
[421636548,1778003442000,-695.61396717,0.00039597,2]
[421636551,1778003442000,-2000.0,0.000396,115]
[421636540,1778003442000,-500.0,0.00039541,2]
[421636416,1778003442000,-150.0,0.00039,7]
[421636515,1778003442000,-1535.0,0.00039418,7]
[421636493,1778003442000,-903.0,0.00039376,30]
[421636553,1778003442000,-2000.0,0.000396,115]
[421636491,1778003442000,-2147.5441,0.00039375,2]
[421636495,1778003442000,-460.0,0.00039376,30]
[421636418,1778003442000,-783.0,0.00039034,5]
[421636446,1778003442000,-500.0,0.0003917,2]
[421636439,1778003442000,-928.0,0.0003912,2]
[421636437,1778003442000,-250.0,0.0003912,2]
[421636449,1778003442000,-151.0,0.00039171,30]
[421636453,1778003442000,-151.0,0.00039171,30]
[421636454,1778003442000,-609.24,0.00039173,2]
[421636451,1778003442000,-151.0,0.00039171,30]
[421636441,1778003442000,-417.0,0.0003912,2]
[421636444,1778003442000,-16120.95964745,0.00039149,2]
[421636456,1778003442000,-4069.56,0.000392,7]
[421636458,1778003442000,-162.18031632,0.000392,7]
[421636460,1778003442000,-2024.2026,0.00039238,2]
[421636435,1778003442000,-1267.0,0.0003912,2]
[421636464,1778003442000,-240.344,0.00039239,2]
[421636462,1778003442000,-150.436,0.00039239,2]
[421636487,1778003442000,-150.0,0.00039349,120]
[421636485,1778003442000,-150.0,0.00039349,120]
[421636481,1778003442000,-150.0,0.00039349,120]
[421636477,1778003442000,-350.0,0.00039268,5]
[421636479,1778003442000,-1560.88,0.0003929,120]
[421636483,1778003442000,-150.0,0.00039349,120]
[421636475,1778003442000,-160.0,0.0003925,120]
[421636474,1778003442000,-150.0,0.0003925,120]
[421636472,1778003442000,-150.0,0.0003925,120]
[421636468,1778003442000,-150.294,0.00039239,2]
[421636489,1778003442000,-1854.55133189,0.00039363,2]
[421636466,1778003442000,-250.0,0.00039239,2]
[421636470,1778003442000,-265.836,0.00039239,2]
[421636632,1778003443000,-169.33728848,0.00039764,120]
[421636619,1778003443000,-150.0,0.00039755,2]
[421636634,1778003443000,-396.0,0.00039772,2]
[421636638,1778003443000,-396.0,0.0003978,2]
[421636640,1778003443000,-396.0,0.00039785,2]
[421636644,1778003443000,-396.0,0.00039792,2]
[421636646,1778003443000,-396.0,0.00039794,2]
[421636648,1778003443000,-396.0,0.00039806,2]
[421636654,1778003443000,-304.99407186,0.00039816,5]
[421636656,1778003443000,-264.0,0.00039817,2]
[421636615,1778003443000,-150.0,0.00039755,2]
[421636636,1778003443000,-1665.10775046,0.00039779,2]
[421636665,1778003443000,-396.0,0.00039828,2]
[421636652,1778003443000,-2024.2026,0.00039812,2]
[421636658,1778003443000,-396.0,0.0003982,2]
[421636661,1778003443000,-396.0,0.00039826,2]
[421636663,1778003443000,-396.0,0.00039827,2]
[421636673,1778003443000,-396.0,0.00039862,2]
[421636677,1778003443000,-396.0,0.00039881,2]
[421636683,1778003443000,-396.0,0.00039889,2]
[421636671,1778003443000,-436.24826303,0.0003985,2]
[421636667,1778003443000,-396.0,0.00039832,2]
[421636679,1778003443000,-396.0,0.00039889,2]
[421636630,1778003443000,-396.0,0.00039761,2]
[421636669,1778003443000,-396.0,0.00039834,2]
[421636650,1778003443000,-396.0,0.00039811,2]
[421636617,1778003443000,-150.0,0.00039755,2]
[421636587,1778003443000,-1600.0,0.00039701,2]
[421636628,1778003443000,-396.0,0.00039761,2]
[421636675,1778003443000,-396.0,0.00039881,2]
[421636555,1778003443000,-2000.0,0.000396,115]
[421636557,1778003443000,-2000.0,0.000396,115]
[421636559,1778003443000,-16120.95964745,0.00039607,2]
[421636561,1778003443000,-2024.2026,0.00039621,2]
[421636563,1778003443000,-933.48,0.00039648,2]
[421636565,1778003443000,-2147.5441,0.00039648,2]
[421636570,1778003443000,-1600.0,0.00039701,2]
[421636567,1778003443000,-361.57982286,0.00039664,2]
[421636573,1778003443000,-1600.0,0.00039701,2]
[421636583,1778003443000,-1600.0,0.00039701,2]
[421636580,1778003443000,-1600.0,0.00039701,2]
[421636577,1778003443000,-1600.0,0.00039701,2]
[421636589,1778003443000,-1600.0,0.00039701,2]
[421636591,1778003443000,-1600.0,0.00039701,2]
[421636595,1778003443000,-269.5807375,0.00039726,120]
[421636593,1778003443000,-1483.0,0.00039701,2]
[421636598,1778003443000,-396.0,0.00039731,2]
[421636602,1778003443000,-396.0,0.00039745,2]
[421636600,1778003443000,-12949.9918,0.00039738,30]
[421636621,1778003443000,-150.0,0.00039755,2]
[421636623,1778003443000,-150.0,0.00039755,2]
[421636610,1778003443000,-396.0,0.00039745,2]
[421636624,1778003443000,-150.0,0.00039755,2]
[421636626,1778003443000,-249.0,0.00039755,2]
[421636612,1778003443000,-150.0,0.0003975,120]
[421636685,1778003443000,-396.0,0.00039899,2]
[421636585,1778003443000,-1600.0,0.00039701,2]
[421636699,1778003443000,-396.0,0.00039911,2]
[421636739,1778003443000,-408.34820023,0.00039973,5]
[421636759,1778003443000,-396.0,0.00039988,2]
[421636761,1778003443000,-396.0,0.00039989,2]
[421636752,1778003443000,-396.0,0.00039975,2]
[421636757,1778003443000,-396.0,0.0003998,2]
[421636763,1778003443000,-396.0,0.00039991,2]
[421636754,1778003443000,-396.0,0.00039979,2]
[421636766,1778003443000,-300.0,0.00039997,10]
[421636768,1778003443000,-666.0,0.00039997,30]
[421636771,1778003443000,-300.0,0.00039998,10]
[421636772,1778003443000,-666.0,0.00039998,30]
[421636785,1778003443000,-964.34,0.00039998,2]
[421636786,1778003443000,-6177.89,0.00039998,2]
[421636765,1778003443000,-396.0,0.00039994,2]
[421636781,1778003443000,-500.0,0.00039998,2]
[421636775,1778003443000,-300.0,0.00039998,10]
[421636777,1778003443000,-669.77504839,0.00039998,30]
[421636779,1778003443000,-500.0,0.00039998,2]
[421636789,1778003443000,-373.59312992,0.00039998,2]
[421636791,1778003443000,-1760.03,0.00039998,2]
[421636783,1778003443000,-659.65,0.00039998,2]
[421636797,1778003443000,-300.0,0.00039999,10]
[421636799,1778003443000,-1000.0,0.00039999,2]
[421636800,1778003443000,-759.74455871,0.00039999,2]
[421636793,1778003443000,-500.0,0.00039998,2]
[421636743,1778003443000,-501.45390726,0.00039973,5]
[421636747,1778003443000,-500.0,0.00039973,5]
[421636795,1778003443000,-666.0,0.00039999,30]
[421636750,1778003443000,-500.0,0.00039973,5]
[421636748,1778003443000,-500.0,0.00039973,5]
[421636703,1778003443000,-1760.03,0.0003992,2]
[421636706,1778003443000,-2147.5441,0.00039921,2]
[421636697,1778003443000,-396.0,0.00039911,2]
[421636691,1778003443000,-396.0,0.00039904,2]
[421636701,1778003443000,-396.0,0.00039913,2]
[421636695,1778003443000,-788.11010939,0.00039911,2]
[421636693,1778003443000,-396.0,0.00039906,2]
[421636689,1778003443000,-396.0,0.00039903,2]
[421636707,1778003443000,-396.0,0.00039924,2]
[421636687,1778003443000,-612.6670399,0.000399,2]
[421636710,1778003443000,-396.0,0.00039941,2]
[421636712,1778003443000,-396.0,0.0003995,2]
[421636681,1778003443000,-396.0,0.00039889,2]
[421636716,1778003443000,-396.0,0.00039953,2]
[421636718,1778003443000,-396.0,0.00039953,2]
[421636741,1778003443000,-266.14613373,0.00039973,5]
[421636729,1778003443000,-396.0,0.00039969,2]
[421636733,1778003443000,-500.0,0.00039973,5]
[421636735,1778003443000,-500.0,0.00039973,2]
[421636737,1778003443000,-500.0,0.00039973,5]
[421636722,1778003443000,-396.0,0.00039964,2]
[421636720,1778003443000,-396.0,0.00039957,2]
[421636714,1778003443000,-396.0,0.0003995,2]
[421636726,1778003443000,-396.0,0.00039969,2]
[421636745,1778003443000,-166.7121702,0.00039973,5]
[421636731,1778003443000,-3960.0,0.00039973,120]
[421636724,1778003443000,-396.0,0.00039968,2]
[421636847,1778003444000,-659.65,0.00039999,2]
[421636853,1778003444000,-659.65,0.00039999,2]
[421636862,1778003444000,-964.34,0.00039999,2]
[421636864,1778003444000,-964.34,0.00039999,2]
[421636855,1778003444000,-659.65,0.00039999,2]
[421636860,1778003444000,-964.34,0.00039999,2]
[421636878,1778003444000,-6177.89,0.00039999,2]
[421636877,1778003444000,-6177.89,0.00039999,2]
[421636880,1778003444000,-6177.89,0.00039999,2]
[421636858,1778003444000,-964.34,0.00039999,2]
[421636868,1778003444000,-964.34,0.00039999,2]
[421636884,1778003444000,-6177.89,0.00039999,2]
[421636886,1778003444000,-2000.0,0.00039999,120]
[421636866,1778003444000,-964.34,0.00039999,2]
[421636849,1778003444000,-659.65,0.00039999,2]
[421636873,1778003444000,-6177.89,0.00039999,2]
[421636891,1778003444000,-1760.03,0.00039999,2]
[421636889,1778003444000,-2000.0,0.00039999,120]
[421636875,1778003444000,-6177.89,0.00039999,2]
[421636870,1778003444000,-964.34,0.00039999,2]
[421636895,1778003444000,-1760.03,0.00039999,2]
[421636882,1778003444000,-6177.89,0.00039999,2]
[421636845,1778003444000,-659.65,0.00039999,2]
[421636827,1778003444000,-457.593693,0.00039999,30]
[421636843,1778003444000,-659.65,0.00039999,2]
[421636899,1778003444000,-1760.03,0.00039999,2]
[421636805,1778003444000,-500.0,0.00039999,2]
[421636803,1778003444000,-500.0,0.00039999,2]
[421636809,1778003444000,-500.0,0.00039999,2]
[421636813,1778003444000,-500.0,0.00039999,2]
[421636811,1778003444000,-500.0,0.00039999,2]
[421636807,1778003444000,-500.0,0.00039999,2]
[421636815,1778003444000,-500.0,0.00039999,2]
[421636816,1778003444000,-151.0,0.00039999,28]
[421636818,1778003444000,-457.593693,0.00039999,30]
[421636829,1778003444000,-500.0,0.00039999,2]
[421636831,1778003444000,-500.0,0.00039999,2]
[421636835,1778003444000,-500.0,0.00039999,2]
[421636837,1778003444000,-500.0,0.00039999,2]
[421636822,1778003444000,-151.0,0.00039999,30]
[421636821,1778003444000,-457.593693,0.00039999,30]
[421636819,1778003444000,-151.0,0.00039999,30]
[421636817,1778003444000,-151.0,0.00039999,7]
[421636839,1778003444000,-500.0,0.00039999,2]
[421636825,1778003444000,-457.593693,0.00039999,30]
[421636841,1778003444000,-500.0,0.00039999,2]
[421636851,1778003444000,-659.65,0.00039999,2]
[421636833,1778003444000,-500.0,0.00039999,2]
[421636901,1778003444000,-1760.03,0.00039999,2]
[421636893,1778003444000,-1760.03,0.00039999,2]
[421636980,1778003444000,-541.40700876,0.0004,30]
[421636982,1778003444000,-500.0,0.0004,2]
[421636984,1778003444000,-5000.0,0.0004,120]
[421636986,1778003444000,-5000.0,0.0004,120]
[421636990,1778003444000,-720.05,0.0004,120]
[421636988,1778003444000,-13770.0,0.0004,120]
[421636999,1778003444000,-165.18,0.0004,3]
[421637003,1778003444000,-500.0,0.0004,21]
[421637005,1778003444000,-500.0,0.0004,21]
[421637001,1778003444000,-150.01,0.0004,30]
[421637018,1778003444000,-151.0,0.0004,30]
[421637021,1778003444000,-156.433764,0.0004,30]
[421637016,1778003444000,-151.0,0.0004,30]
[421637009,1778003444000,-104701.67471065,0.0004,120]
[421637014,1778003444000,-160.0,0.0004,73]
[421637012,1778003444000,-33040.72130195,0.0004,120]
[421637023,1778003444000,-202.66399536,0.0004,7]
[421637025,1778003444000,-240.11711697,0.0004,7]
[421637027,1778003444000,-176.58888063,0.0004,7]
[421637029,1778003444000,-154.3724558,0.0004,7]
[421636897,1778003444000,-1760.03,0.00039999,2]
[421636973,1778003444000,-3244.3143969,0.0004,120]
[421636978,1778003444000,-597.0,0.0004,2]
[421637007,1778003444000,-257.999999,0.0004,120]